[Event "1st Uppsala Festival 2022"]
[Site "Uppsala"]
[Date "2022.08.13"]
[Round "8.3"]
[White "Larkin, Vladyslav"]
[Black "Sriram, Jha"]
[Result "1-0"]
[ECO "C95"]
[WhiteElo "2455"]
[BlackElo "2361"]
[Annotator "TA"]
[PlyCount "149"]
[EventDate "2022.08.09"]
[EventType "tourn"]
[EventCountry "SWE"]
[SourceTitle "playchess.com"]
[Source "ChessBase"]
[SourceQuality "1"]
[TimeControl "5400+30"]

{[%evp 30,148,20,23,27,17,29,33,26,10,44,53,54,66,90,85,90,95,121,97,114,91,168,177,177,162,248,256,255,258,295,309,401,186,320,319,597,568,561,391,852,338,380,389,373,296,305,197,180,99,244,254,244,150,150,158,130,141,206,153,155,154,137,131,119,127,157,135,129,127,128,116,140,132,162,162,162,159,157,155,585,591,658,167,204,192,216,205,244,237,270,262,329,262,253,0,318,296,303,303,331,327,4828,4902,1697,1640,1141,534,6279,670,663,601,29984,29985,29991,29985,29985,29986,29998,29999,29999]} 1. e4 {[%emt 0:18:57]} e5 {[%emt 0:00:41]} 2. Nf3 {[%emt 0:00:13]} Nc6 {[%emt 0:00:10]} 3. Bb5 {[%emt 0:00:06]} a6 {[%emt 0:00:28]} 4. Ba4 {[%emt 0:00:05]} Nf6 {[%emt 0:00:06]} 5. O-O {[%emt 0:01:23]} Be7 {[%emt 0:00:07]} 6. Re1 {[%emt 0:00:05]} b5 {[%emt 0:00:19]} 7. Bb3 {[%emt 0:00:05]} d6 {[%emt 0:00:14]} 8. c3 {[%emt 0:00:06]} O-O {[%emt 0:00:14]} 9. h3 {[%emt 0:00:04]} Nb8 {[%emt 0:00:05]} 10. d4 {[%emt 0:00:20]} Nbd7 {[%emt 0:00:10]} 11. Nbd2 {[%emt 0:00:27]} Bb7 {[%emt 0:00:08]} 12. Bc2 {[%emt 0:00:18]} Re8 {[%emt 0:00:06]} 13. a4 {[%emt 0:00:34]} Bf8 {[%emt 0:03:26]} 14. Bd3 {[%emt 0:00:51]} c6 {[%emt 0:02:35]} 15. Qc2 {[%emt 0:00:12]} g6 {[%emt 0:05:54]} 16. b3 {[%emt 0:01:47]} Qc7 {[%emt 0:09:00] C95: Closed Ruy Lopez: Breyer Variation with 10 d4.} 17. Bb2 {[%emt 0:00:22]} Bg7 {[%emt 0:00:46]} 18. Bf1 {[%emt 0:00:16]} Rac8 {[%emt 0:09:58] White is slightly better.} 19. dxe5 {[%emt 0:08:50] [#]} dxe5 $146 {[%emt 0:09:19]} ({Predecessor:} 19... Nxe5 20. c4 Nxf3+ 21. Nxf3 bxa4 22. bxa4 c5 23. e5 Nh5 24. exd6 Qxd6 25. Rxe8+ Rxe8 26. Rd1 Qc7 27. Re1 Bc6 {½-½ (27) Green,W (2440)-Danenkov,P (2327) ICCF email 2010}) 20. c4 {[%emt 0:00:41][%cal Rc4b5]} bxa4 {[%emt 0:06:47]} 21. c5 {[%emt 0:02:27]} axb3 {[%emt 0:02:19]} 22. Nxb3 {[%emt 0:00:07]} Ra8 {[%emt 0:00:47]} 23. Bc3 {[%emt 0:01:53][%cal Bb2c3,Bc3a5,Ba5b4,Bb4c5,Bc5b6][%mdl 1056] Inhibits a5. White has strong compensation.} Nf8 {[%emt 0:01:37]} 24. Na5 {[%emt 0:08:35]} N6d7 {[%emt 0:01:56]} 25. Nc4 {[%emt 0:01:27] Threatens to win with Ba5. 0x0.0019ed090643dp-1022s more active pieces. The black rooks are badly placed.} Ne6 {[%emt 0:15:14]} (25... Nxc5 $16 26. Ba5 Qb8) 26. Ba5 $18 {[%emt 0:00:42]} Qb8 {[%emt 0:00:12]} 27. Nd6 {[%emt 0:14:05]} Re7 {[%emt 0:00:20]} (27... Bf8 $142 28. Nxe8 Qxe8) 28. Red1 {[%emt 0:03:00]} Ndxc5 {[%emt 0:09:56]} 29. Bb4 {[%emt 0:08:49]} Qa7 {[%emt 0:03:44]} 30. Ra5 {[%emt 0:13:37]} (30. Rac1 $6 Rd7 31. Bc4 (31. Bxc5 Qxc5 32. Qb3 Nd4 $16) 31... Rf8 32. Nxf7 (32. Bxe6 Nxe6 33. Nxb7 Rxd1+ 34. Qxd1 Qxb7 $16) 32... Rdxf7 $18) 30... Qb6 {[%emt 0:04:53]} 31. Qc3 {[%emt 0:08:26]} (31. Rb1 $142) 31... Rd7 {[%emt 0:06:46]} (31... Nxe4 $142 32. Nxe4 c5 33. Bxc5 (33. Nxc5 e4 $16) 33... Nxc5 34. Qxc5 Qxc5 35. Nxc5 Bxf3 36. gxf3 Bh6 37. Rxa6 Rxa6) 32. Rxc5 {[%emt 0:00:59]} Nxc5 $2 {[%emt 0:01:38]} (32... Qc7 33. Ba5 Qb8) 33. Bxc5 {[%emt 0:00:03]} (33. Qxc5 Qxc5 34. Bxc5 a5 $16) 33... Qc7 {[%emt 0:00:21]} 34. Rb1 {[%emt 0:00:14]} Bc8 {[%emt 0:00:50]} (34... Rb8 35. Qa3 (35. Rxb7 Rxb7 36. Nxb7 Qxb7 $16) 35... Bf6) 35. Nc4 $2 {[%emt 0:01:26] Pair of Knights!} (35. Ne8 Qd8 36. Nxg7 Kxg7 37. Nxe5) 35... Rb8 {[%emt 0:00:34]} 36. Bb6 {[%emt 0:00:04]} Qb7 {[%emt 0:00:46]} 37. Nfd2 {[%emt 0:03:45]} Qa8 {[%emt 0:00:22]} 38. Na5 {[%emt 0:00:43]} c5 {[%emt 0:01:18]} 39. Bc4 {[%emt 0:00:10]} ({White should play} 39. Rb3 $18) 39... Bb7 {[%emt 0:00:44]} (39... Bh6 $16 40. Bd3 (40. Qxe5 Bxd2 41. Rb3 Bb7 $11) 40... Bxd2 41. Qxd2 Qxe4 42. Bxe4 Rxd2) 40. Nxb7 {[%emt 0:00:14]} ({Don't do} 40. Bxc5 $6 Bxe4 41. Rxb8+ Qxb8) 40... Qxb7 {[%emt 0:00:13]} 41. Bd5 {[%emt 0:03:05] Inhibits Qc6.} Rxd5 {[%emt 0:02:12]} 42. exd5 {[%emt 0:00:04]} Qxd5 {[%emt 0:00:02]} 43. Qc2 {[%emt 0:00:07] Prevents e4.} (43. Bxc5 $2 Rxb1+ 44. Nxb1 Qd1+ 45. Kh2 Qxb1 $19) 43... h5 {[%emt 0:02:18]} (43... Qc6 $16 {is a better defense.}) 44. Nc4 {[%emt 0:01:11]} ({Don't take} 44. Bxc5 $6 Rc8 $16) 44... e4 {[%emt 0:00:14]} 45. Rd1 {[%emt 0:01:30]} Bd4 {[%emt 0:00:12]} 46. Ba5 {[%emt 0:00:24]} Qe6 {[%emt 0:01:32]} 47. Bd2 {[%emt 0:00:12]} Qd5 {[%emt 0:01:11]} 48. Be3 {[%emt 0:00:25]} Rb4 {[%emt 0:00:02]} 49. Rc1 {[%emt 0:00:22]} Qe6 {[%emt 0:00:27]} 50. Bd2 {[%emt 0:00:23]} Rb8 {[%emt 0:00:32]} 51. Qa4 {[%emt 0:00:35]} Qf6 {[%emt 0:00:37]} 52. Be3 {[%emt 0:00:14]} Qe6 {[%emt 0:00:13]} 53. Qa5 {[%emt 0:00:09]} Kh7 {[%emt 0:01:07]} 54. Qc7 {[%emt 0:01:41]} Rb4 {[%emt 0:01:09]} (54... Re8 $16 {is tougher.} 55. Qg3 Rd8) 55. Bxd4 {[%emt 0:00:15][%cal Od4e5] Black must now prevent Be5!} cxd4 {[%emt 0:00:16]} 56. Qc5 $2 {[%emt 0:00:03]} (56. Nd6 e3 57. Nxf7) 56... Rb5 {[%emt 0:00:48]} 57. Qxd4 {[%emt 0:00:12]} Rd5 {[%emt 0:00:02]} 58. Qe3 {[%emt 0:00:52]} Rd3 {[%emt 0:00:07]} 59. Qf4 {[%emt 0:00:19]} Rd5 {[%emt 0:01:00] Against Ne5} 60. Ne3 {[%emt 0:00:29]} Rd7 {[%emt 0:00:20]} 61. Qb8 {[%emt 0:00:37]} Rd2 {[%emt 0:00:52]} 62. Qf4 {[%emt 0:00:54][%cal Oe3f5] Strongly threatening Nf5!} Rd7 $1 {[%emt 0:00:06]} 63. Ra1 {[%emt 0:00:07]} Rb7 {[%emt 0:00:23]} 64. Rd1 {[%emt 0:00:43]} Re7 {[%emt 0:00:59]} 65. Rd6 {[%emt 0:00:17]} Qc8 $2 {[%emt 0:00:34]} (65... Qe5 66. Qxe5 Rxe5 67. Rxa6 Re8) 66. Nd5 {[%emt 0:00:15]} Rb7 {[%emt 0:00:32]} 67. Nf6+ {[%emt 0:00:12]} Kg7 {[%emt 0:00:09] [#]} 68. Nxe4 {[%emt 0:00:24]} (68. Nxh5+ $142 $1 {[%mdl 512]} gxh5 (68... Kf8 69. Qf6) 69. Qg5+ Kf8 70. Rh6 Rb1+ 71. Kh2 Qc7+ 72. g3) 68... Qe8 {[%emt 0:00:56]} 69. Rxa6 {[%emt 0:00:45]} (69. Qf6+ $142 Kh7 {[#]} 70. Rd8 $1) 69... Rb1+ {[%emt 0:00:31]} 70. Kh2 {[%emt 0:00:05] White threatens Nd6 and mate.} Rb4 {[%emt 0:00:31]} 71. Qf6+ {[%emt 0:00:32] White mates.} Kh6 {[%emt 0:00:09]} 72. Ng5 {[%emt 0:00:14]} Rb7 {[%emt 0:00:32]} 73. Rd6 {[%emt 0:00:07]} Qb8 {[%emt 0:00:10]} 74. Nxf7+ {[%emt 0:00:07]} Rxf7 {[%emt 0:00:18]} 75. Qxg6# {[%emt 0:00:04] Weighted Error Value: White=0.48/Black=0.51} ({Weaker is} 75. Qxf7 Qxd6+ 76. g3 Qd1 $16) 1-0

[Event "1st Uppsala Festival 2022"]
[Site "Uppsala"]
[Date "2022.08.13"]
[Round "8.4"]
[White "Stefansson, Vignir Vatnar"]
[Black "Lindberg, Bengt"]
[Result "1/2-1/2"]
[ECO "E06"]
[WhiteElo "2461"]
[BlackElo "2370"]
[Annotator "RC"]
[PlyCount "99"]
[EventDate "2022.08.09"]
[EventType "tourn"]
[EventCountry "SWE"]
[SourceTitle "playchess.com"]
[Source "ChessBase"]
[SourceQuality "1"]
[TimeControl "5400+30"]

1. c4 {[%emt 0:01:18]} Nf6 {[%emt 0:00:10]} 2. g3 {[%emt 0:00:06]} e6 {[%emt 0:00:06]} 3. Bg2 {[%emt 0:00:04]} d5 {[%emt 0:00:05]} 4. d4 {[%emt 0:00:10]} Be7 {[%emt 0:00:07]} 5. Nf3 {[%emt 0:00:05]} O-O {[%emt 0:00:06]} 6. Qc2 {[%emt 0:00:58]} c5 {[%emt 0:00:59]} 7. dxc5 {[%emt 0:00:07]} Qa5+ {[%emt 0:01:42]} 8. Nc3 {[%emt 0:00:06]} dxc4 {[%emt 0:01:47]} 9. O-O {[%emt 0:00:08]} Nc6 {[%emt 0:04:09]} 10. Ne4 {[%emt 0:02:24]} Nxe4 {[%emt 0:04:09]} 11. Qxe4 {[%emt 0:00:05]} c3 {[%emt 0:04:46]} 12. bxc3 {[%emt 0:07:08]} Qxc5 {[%emt 0:01:52]} 13. Bf4 {[%emt 0:23:48]} f5 {[%emt 0:06:35]} 14. Qa4 {[%emt 0:01:38]} Bf6 {[%emt 0:03:09]} 15. Be3 {[%emt 0:14:59]} Qa5 {[%emt 0:18:57]} 16. Qxa5 {[%emt 0:01:08]} Nxa5 {[%emt 0:00:38]} 17. Bd4 {[%emt 0:00:07]} Bd7 {[%emt 0:02:06]} 18. Rab1 {[%emt 0:02:27]} Bc6 {[%emt 0:03:04]} 19. Bxf6 {[%emt 0:00:11]} gxf6 {[%emt 0:02:52]} 20. Nd4 {[%emt 0:00:09]} Bxg2 {[%emt 0:00:15]} 21. Kxg2 {[%emt 0:00:04]} Kf7 {[%emt 0:00:08]} 22. Rfe1 {[%emt 0:01:30]} Rfd8 {[%emt 0:05:02]} 23. Rb5 {[%emt 0:02:44]} b6 {[%emt 0:02:08]} 24. e4 {[%emt 0:00:04]} fxe4 {[%emt 0:00:45]} 25. Rh5 {[%emt 0:00:24]} Kg6 {[%emt 0:15:57]} 26. g4 {[%emt 0:00:31]} Rd5 {[%emt 0:00:24]} 27. Rxe4 {[%emt 0:07:42]} Rxh5 {[%emt 0:00:06]} 28. gxh5+ {[%emt 0:00:04]} Kf7 {[%emt 0:00:55]} 29. Rxe6 {[%emt 0:00:47]} Rd8 {[%emt 0:00:28]} 30. Re3 {[%emt 0:00:44]} Rd5 {[%emt 0:03:38]} 31. h6 {[%emt 0:00:04]} Rh5 {[%emt 0:03:18]} 32. f4 {[%emt 0:00:34]} Nc4 {[%emt 0:01:36]} 33. Rd3 {[%emt 0:03:47]} Rxh6 {[%emt 0:01:27]} 34. Nc6 {[%emt 0:01:11]} a5 {[%emt 0:03:28]} 35. Kg3 {[%emt 0:06:37]} f5 {[%emt 0:04:45]} 36. Rd7+ {[%emt 0:00:36]} Ke6 {[%emt 0:00:29]} 37. Rd8 {[%emt 0:00:13]} Kf7 {[%emt 0:01:48]} 38. Rc8 {[%emt 0:00:34]} Nd6 {[%emt 0:00:59]} 39. Ne5+ {[%emt 0:02:31]} Ke6 {[%emt 0:00:07]} 40. Rc7 {[%emt 0:04:06]} Kd5 {[%emt 0:01:03]} 41. h4 {[%emt 0:01:59]} Ne4+ {[%emt 0:00:47]} 42. Kh3 {[%emt 0:00:21]} Nf2+ {[%emt 0:00:32]} 43. Kg2 {[%emt 0:00:11]} Ne4 {[%emt 0:00:08]} 44. Rd7+ {[%emt 0:09:13]} Kc5 {[%emt 0:00:06]} 45. c4 {[%emt 0:00:15]} Kb4 {[%emt 0:01:22]} 46. Rf7 {[%emt 0:03:51]} Nd6 {[%emt 0:00:39]} 47. Rc7 {[%emt 0:00:03]} Ne4 {[%emt 0:00:42]} 48. Rf7 {[%emt 0:00:32]} Nd6 {[%emt 0:00:06]} 49. Rc7 {[%emt 0:01:27]} Ne4 {[%emt 0:00:06]} 50. Rf7 {[%emt 0:01:29]} 1/2-1/2

[Event "1st Uppsala Festival 2022"]
[Site "Uppsala"]
[Date "2022.08.13"]
[Round "8.5"]
[White "Peng, Li Min"]
[Black "Johansson, Jan"]
[Result "1-0"]
[ECO "E32"]
[WhiteElo "2516"]
[BlackElo "2306"]
[Annotator "TA"]
[PlyCount "29"]
[EventDate "2022.08.09"]
[EventType "tourn"]
[EventCountry "SWE"]
[SourceTitle "playchess.com"]
[Source "ChessBase"]
[SourceQuality "1"]
[TimeControl "5400+30"]

{[%evp 13,29,0,0,21,137,150,659,539,1573,377,1590,1593,29991,29992,29992,29993,2462,2317]} 1. d4 {[%emt 0:17:47]} Nf6 {[%emt 0:00:23]} 2. c4 {[%emt 0:00:09]} e6 {[%emt 0:00:05]} 3. Nc3 {[%emt 0:00:05]} Bb4 {[%emt 0:00:16]} 4. Qc2 {[%emt 0:00:03]} O-O {[%emt 0:00:28]} 5. e4 {[%emt 0:00:08][%cal Be2e4,Be4e5][%mdl 32]} d5 {[%emt 0:00:18]} 6. e5 {[%emt 0:00:05]} Ne4 {[%emt 0:00:10]} 7. Bd3 {[%emt 0:00:07][%cal Bf1d3,Bd3h7,Bh7g8,Bg8f7][%mdl 32]} c5 {[%emt 0:00:07]} 8. Nf3 {[%emt 0:00:05] Threatens to win with 0-0. E32: Nimzo-Indian: Classical (4 Qc2): 4...0-0.} Qa5 {[%emt 0:36:28]} (8... cxd4 $11 9. Nxd4 Nd7) 9. O-O $16 {[%emt 0:02:24] [#]} ({But not} 9. cxd5 $6 Nxc3 10. bxc3 (10. Bxh7+ Kh8 $15) 10... Bxc3+ 11. Bd2 Bxd2+ 12. Qxd2 (12. Nxd2 cxd4 13. Bxh7+ Kh8 $11) 12... Qxd2+ 13. Kxd2 exd5 $11) 9... Nxc3 $146 {[%emt 0:01:06]} (9... f5 $16) ({Predecessor:} 9... Bxc3 10. bxc3 Nc6 11. Bxe4 dxe4 12. Qxe4 Ne7 13. Bg5 Qc7 14. d5 h6 15. Bxe7 Qxe7 {1-0 (27) Schyndel,A (2038)-Sileika,A (2036) ICCF email 2020}) 10. bxc3 {[%emt 0:01:06]} Bxc3 {[%emt 0:00:07]} 11. Bxh7+ {[%emt 0:07:29]} Kh8 {[%emt 0:00:04] [#]} 12. Ng5 $1 {[%emt 0:00:04][%cal Oc2d3] Intending Qd3! and mate.} Bxa1 {[%emt 0:05:59] [#]} (12... g6 13. Rb1) 13. Bg8 $1 {[%emt 0:00:05][%csl Gg5,Gg8][%cal Rc2h7][%mdl 512]} g6 {[%emt 0:01:12]} 14. Nxf7+ {[%emt 0:00:05]} Rxf7 {[%emt 0:00:46]} 15. Bxf7 {[%emt 0:00:04] Black did not feel at home in the position after the opening.  Weighted Error Value: White=0.15 (very precise) /Black=2.32} 1-0

[Event "1st Uppsala Festival 2022"]
[Site "Uppsala"]
[Date "2022.08.14"]
[Round "9.1"]
[White "Trost, Edvin"]
[Black "Savitha Shri B"]
[Result "1-0"]
[ECO "E01"]
[WhiteElo "2345"]
[BlackElo "2278"]
[Annotator "TA"]
[PlyCount "181"]
[EventDate "2022.08.09"]
[EventType "tourn"]
[EventCountry "SWE"]
[SourceTitle "playchess.com"]
[Source "ChessBase"]
[SourceQuality "1"]
[TimeControl "5400+30"]

{[%evp 14,181,33,17,76,55,97,95,102,101,88,88,85,83,89,103,106,84,91,97,110,105,129,135,137,137,160,146,235,201,225,197,218,206,191,192,196,183,252,246,228,150,147,144,140,115,143,118,112,56,87,85,100,93,87,87,108,89,100,97,111,107,107,58,77,34,58,0,123,56,86,87,109,102,131,127,129,120,135,104,183,85,435,411,237,21,22,26,25,0,0,0,101,101,107,72,109,24,27,33,913,890,860,206,206,271,240,0,12815,12812,12793,350,342,164,151,176,172,0,212,211,370,360,356,356,12835,12835,12824,12825,12827,631,12824,12826,12827,12828,12828,12829,12828,12828,12830,12830,12830,12830,12831,12831,12834,12830,12833,6203,12850,12850,12850,27999,27998,27999,27999,27999,27999,27999,27999,27999,27999,27999,27996,27996,27998,27998,27999,27998,27999,27999]} 1. d4 {[%emt 0:00:01]} d5 {[%emt 0:00:57]} 2. c4 {[%emt 0:00:10]} e6 {[%emt 0:00:05]} 3. Nf3 {[%emt 0:00:28]} Nf6 {[%emt 0:00:12]} 4. g3 {[%emt 0:00:34]} c6 {[%emt 0:05:23]} 5. Bg2 {[%emt 0:00:58]} Nbd7 {[%emt 0:00:39]} 6. Qc2 {[%emt 0:07:21]} Bd6 {[%emt 0:03:43]} 7. Nbd2 {[%emt 0:01:47][%cal Bb1d2,Bd2f1,Bf1e3][%mdl 32]} O-O {[%emt 0:00:31]} 8. O-O {[%emt 0:00:23]} a6 {[%emt 0:14:13] E01: Catalan: Early deviations.} (8... Re8 $11) 9. Rd1 {[%emt 0:05:40] [#]} Bb4 $146 {[%emt 0:05:13]} ({Predecessor:} 9... b5 10. b3 a5 11. c5 Bc7 12. e4 dxe4 13. Nxe4 Nd5 14. a3 b4 15. a4 Ba6 16. Bb2 {1-0 (49) Mekhitarian,K (2545)-Brito,L (2354) Foz do Iguacu 2018}) 10. e4 {[%emt 0:11:14]} Be7 {[%emt 0:03:51] White is better.} 11. e5 {[%emt 0:01:54]} Ne8 {[%emt 0:00:34][%cal Bf6e8,Be8c7,Bc7d5][%mdl 32]} 12. Nf1 {[%emt 0:04:59]} dxc4 {[%emt 0:07:48]} 13. Qxc4 {[%emt 0:00:08]} Nc7 {[%emt 0:03:58]} 14. h4 {[%emt 0:06:04]} Nd5 {[%emt 0:00:27]} 15. Ne3 {[%emt 0:03:24]} f5 {[%emt 0:09:51]} 16. exf6 {[%emt 0:02:20]} N7xf6 {[%emt 0:02:18]} 17. Qe2 {[%emt 0:01:49]} b5 {[%emt 0:06:01]} 18. Ne5 {[%emt 0:07:05]} Qb6 {[%emt 0:01:58]} 19. Nxd5 {[%emt 0:02:43]} cxd5 {[%emt 0:03:24]} 20. Bg5 {[%emt 0:02:12] White is more active.} Qd6 {[%emt 0:02:16]} (20... Re8 $16 {was called for.} 21. h5 h6) 21. Bf4 {[%emt 0:01:26]} Qb6 {[%emt 0:01:15]} 22. h5 {[%emt 0:07:44]} Nd7 {[%emt 0:08:36]} 23. h6 {[%emt 0:04:56]} Nxe5 {[%emt 0:04:31]} 24. Bxe5 {[%emt 0:00:32]} (24. Qxe5 $6 Bf6 25. Qe3 Bd7 $16) 24... Bf6 {[%emt 0:02:04]} 25. hxg7 {[%emt 0:01:59]} Bxg7 {[%emt 0:00:53]} (25... Rf7 {keeps fighting.} 26. Bxf6 Rxf6) 26. Bxg7 $18 {[%emt 0:04:33]} (26. Qg4 $6 Ra7 27. Rd3 Kh8 $16) 26... Kxg7 {[%emt 0:00:01]} 27. Rac1 {[%emt 0:01:50] Hoping for Qe5+.} (27. Qh5 $6 Qd8 $16) 27... Qd6 {[%emt 0:01:58]} 28. Rc3 {[%emt 0:00:41]} (28. Qh5 Bd7 $16) 28... Bd7 {[%emt 0:00:17]} 29. Re1 {[%emt 0:00:31]} (29. Qh5 Rf5 30. Qe2 b4 $14) 29... Rf6 {[%emt 0:01:44]} 30. Re3 {[%emt 0:04:36]} (30. Qh5 Raf8 $16) 30... Raf8 {[%emt 0:00:50][%cal Ba8f8,Bf8f7,Bf7g7][%mdl 32]} 31. f4 {[%emt 0:00:11]} ({White should play} 31. Rf3 $1 $16) 31... Qb4 {[%emt 0:00:55]} 32. Rd1 {[%emt 0:00:01]} Qc4 {[%emt 0:01:53]} 33. Qd2 {[%emt 0:00:37]} b4 {[%emt 0:02:13]} 34. Rc1 {[%emt 0:04:47]} Qb5 {[%emt 0:00:13]} 35. Rc7 {[%emt 0:00:41]} R8f7 {[%emt 0:00:21]} 36. Bf1 {[%emt 0:02:15]} Qb6 {[%emt 0:00:45]} 37. Rc5 {[%emt 0:00:03]} Kh8 {[%emt 0:01:39]} 38. Bd3 {[%emt 0:00:22]} (38. Qe2 $16) 38... Rg7 $14 {[%emt 0:00:10] Threatens to win with ...Rxf4.} 39. Qf2 {[%emt 0:00:48]} Qb8 {[%emt 0:01:08]} 40. Kf1 {[%emt 0:01:37]} (40. Bxa6 $2 Rxf4 41. Qg2 (41. Qd2 $2 Rf6 $19) 41... Rfg4 $19) (40. Rf3 $14) 40... Qd6 {[%emt 0:01:44]} (40... Rh6 $1 $11 {keeps the balance.}) 41. Ke2 {[%emt 0:00:24]} (41. Qh2 $16) 41... Be8 {[%emt 0:01:00]} 42. Qe1 {[%emt 0:03:27]} Bh5+ {[%emt 0:00:37]} 43. Kd2 {[%emt 0:00:19][%cal Be2d2,Bd2c2,Bc2b1][%mdl 32]} Bg6 {[%emt 0:02:24]} 44. Kc2 {[%emt 0:00:02]} Rb7 {[%emt 0:00:44]} 45. Bxg6 {[%emt 0:01:27]} Rxg6 {[%emt 0:00:05]} 46. Kb1 {[%emt 0:00:21][%cal Of4f5]} Qf8 {[%emt 0:00:51] [#]} (46... Rb8 $16 47. Rb3 Kg7) 47. Re5 {[%emt 0:00:23]} (47. Rxd5 $3 $18 {[%mdl 512] and White stays clearly on top.} exd5 48. Re8) 47... Qd6 {[%emt 0:01:07][%mdl 8192]} (47... Rbg7 $16) 48. Rc8+ $18 {[%emt 0:01:25]} Kg7 {[%emt 0:00:08] [#]} 49. g4 $2 {[%emt 0:01:15]} (49. f5 $1 $18 {[%cal Rf5g6]} exf5 50. Ree8 (50. Rxf5 Qe6 $16)) 49... Rxg4 $11 {[%emt 0:00:40]} 50. Rxe6 {[%emt 0:00:12]} Qxf4 {[%emt 0:00:06]} 51. Re7+ {[%emt 0:03:19]} (51. Ree8 $5 {[%cal Re8g8]} Rf7 52. Rg8+ Kh6 53. Qh1+ Rh4 54. Qxd5 (54. Rc6+ Kh5 $11) 54... Qe4+ 55. Qxe4 Rxe4 56. Rc1 $11) 51... Rxe7 {[%emt 0:00:05]} 52. Qxe7+ {[%emt 0:00:02][%mdl 4096] Endgame KQR-KQR} Qf7 {[%emt 0:01:30]} (52... Kh6 $11 {remains equal.} 53. Qe6+ Rg6 54. Qh3+ Kg5 55. Qxh7 (55. Qg2+ Kf6 $11) 55... Qe4+ 56. Rc2 Rh6 57. Qg7+ Kh5) 53. Qe5+ $16 {[%emt 0:00:01][%mdl 1024] White has strong compensation.} Kh6 {[%emt 0:00:27]} 54. Rc6+ {[%emt 0:00:43]} Rg6 {[%emt 0:00:03]} 55. Rc1 {[%emt 0:00:06]} ({White should try} 55. Qh2+ $16 Kg5 56. Rc1 Qf5+ 57. Ka1) 55... Qf3 $11 {[%emt 0:01:02]} 56. Ka1 Qh5 $2 {[%emt 0:00:32][%mdl 8192]} (56... Rf6 $14) 57. Qf4+ $18 {[%emt 0:01:02]} Qg5 {[%emt 0:00:02]} 58. Rh1+ $2 {[%emt 0:00:12]} (58. Qf8+ Kh5 59. Rh1+ Kg4 60. Rg1+ Kh4 61. Rxg5 Kxg5 62. Qxb4) 58... Kg7 {[%emt 0:00:00]} 59. Qc7+ {[%emt 0:00:12][%mdl 64] Skewer} Kf8 {[%emt 0:00:01][%cal Og5g1] And now ...Qg1+! would win.} 60. Qxh7 $2 {[%emt 0:03:20]} (60. Qb8+ $18 Kf7 61. Rxh7+ Rg7 62. Qb7+ (62. Rh1 $2 {is a self mate.} Qg1+ 63. Rxg1 Rxg1#) 62... Kg8 63. Rxg7+ Qxg7 64. Qxd5+ Kh7 65. Kb1) 60... Ke8 $2 {[%emt 0:01:08][%mdl 8192]} (60... Qg1+ $11 61. Rxg1 Rxg1+ 62. Qb1 Rxb1+ 63. Kxb1 b3) 61. Re1+ {[%emt 0:00:14]} Kd8 {[%emt 0:00:01]} 62. Qb7 $2 {[%emt 0:00:24]} (62. Qf7 {[%csl Gf7][%cal Re1e8]} Rg8 63. Rf1) 62... Re6 {[%emt 0:01:13][%cal Re6e1] Prevents Re8+.} 63. Rh1 {[%emt 0:00:54]} ({Weaker is} 63. Qxb4 Rxe1+ 64. Qxe1 Qg4 $16) (63. Rd1 $142) 63... Rh6 {[%emt 0:00:01][%cal Rh6h1]} 64. Qb8+ {[%emt 0:00:07]} Kd7 {[%emt 0:00:03][%cal Rh6h1]} 65. Qb7+ {[%emt 0:00:11]} Kd8 {[%emt 0:00:02][%cal Rh6h1]} 66. Rb1 {[%emt 0:01:06] Black must now prevent a4.} Qf4 $2 {[%emt 0:01:48]} (66... Qg2 {is a better defense.} 67. Qxb4 Rh1) 67. Qxb4 {[%emt 0:00:25] Strongly threatening Qa5+.} Rc6 {[%emt 0:00:09]} 68. Qa5+ {[%emt 0:00:07]} Rc7 $2 {[%emt 0:01:12]} (68... Kc8 69. Qxd5 Qd6 70. Qf5+ Kb8) 69. Qxd5+ {[%emt 0:00:03]} Kc8 {[%emt 0:00:02]} 70. a3 {[%emt 0:00:23]} Kb8 {[%emt 0:00:10]} 71. Qe5 {[%emt 0:01:58]} (71. Re1 $142 Ka7 72. Ka2) 71... Qd2 {[%emt 0:00:06]} 72. Rh1 {[%emt 0:00:26] White wants to mate with Rh8+.} Kb7 {[%emt 0:00:34]} 73. Qd5+ {[%emt 0:00:12]} Ka7 {[%emt 0:00:00]} 74. Rh8 {[%emt 0:00:51] Ra8+ would kill now.} Qc1+ {[%emt 0:00:57]} 75. Ka2 {[%emt 0:00:00] Intending Ra8+ and mate.} Qc4+ {[%emt 0:00:02]} 76. Qxc4 {[%emt 0:00:01]} Rxc4 {[%emt 0:00:00] KR-KR} 77. Rh4 {[%emt 0:00:40]} Kb6 {[%emt 0:00:25]} 78. Kb3 {[%emt 0:00:01]} Rc1 {[%emt 0:00:07]} 79. Rh2 {[%emt 0:00:32]} Kb5 {[%emt 0:00:34]} 80. Rc2 {[%emt 0:00:36]} (80. a4+ $142 Kb6 81. Rh6+ Ka7 82. a5) 80... Rxc2 {[%emt 0:01:44] KR-K3P} 81. a4+ {[%emt 0:01:34]} Ka5 {[%emt 0:00:01]} 82. Kxc2 {[%emt 0:01:09]} Kxa4 {[%emt 0:00:02] KPP-KP. White mates.} 83. Kd3 {[%emt 0:00:00]} Kb4 {[%emt 0:00:58]} 84. Ke4 {[%emt 0:00:16]} Kb3 {[%emt 0:00:10]} 85. d5 {[%emt 0:00:09]} a5 {[%emt 0:00:07]} 86. d6 {[%emt 0:00:03]} Kxb2 {[%emt 0:00:07]} 87. d7 {[%emt 0:00:03]} a4 {[%emt 0:00:03]} 88. d8=Q {[%emt 0:00:05]} a3 {[%emt 0:00:03]} 89. Qd2+ {[%emt 0:00:41]} Kb1 {[%emt 0:00:02]} 90. Qb4+ {[%emt 0:00:12]} Ka2 {[%emt 0:00:09]} 91. Kd3 {[%emt 0:00:05] Weighted Error Value: White=0.36/Black=0.37} 1-0